bitfinex/quotes_SOLUSD_20250731
["timestamp","ask_amount","ask_price","bid_price","bid_amount"]
[1753972918280,0.03,176.64,176.62,9.87946285]
[1753972918586,0.03,176.64,176.61,50.77946285]
[1753972918757,0.71,176.63,176.61,40.9]
[1753972918956,0.71,176.63,176.59,11.48256285]
[1753972919157,10.58946285,176.62,176.58,50.75946285]
[1753972919390,10.58946285,176.61,176.58,40.88]
[1753972920090,0.71,176.61,176.58,40.88]
[1753972920292,0.71,176.6,176.58,40.88]
[1753972920467,0.71,176.59,176.56,40.88]
[1753972920660,9.87946285,176.57,176.55,0.06]
[1753972920859,9.87946285,176.56,176.55,0.06]
[1753972921092,9.87946285,176.57,176.55,0.06]
[1753972921384,10.58946285,176.57,176.55,0.06]
[1753972921978,9.87946285,176.58,176.55,0.06]
[1753972922383,5.66258201,176.6,176.55,0.06]
[1753972922683,9.87946285,176.58,176.55,0.06]
[1753972922885,10.58946285,176.62,176.57,9.87946285]
[1753972923098,5.66155239,176.63,176.58,0.65]
[1753972923381,9.87946285,176.61,176.56,50.75946285]
[1753972923759,9.87946285,176.61,176.57,0.65]
[1753972924155,10.59946285,176.61,176.57,0.65]
[1753972924360,9.87946285,176.6,176.56,40.88]
[1753972924578,9.87946285,176.6,176.56,50.75946285]
[1753972924895,9.87946285,176.57,176.55,0.06]
[1753972925373,0.72,176.59,176.55,0.06]
[1753972925568,9.87946285,176.58,176.55,0.06]
[1753972925762,0.72,176.58,176.55,0.06]
[1753972926083,10.59946285,176.58,176.55,0.06]
[1753972926474,5.66307306,176.59,176.55,0.06]
[1753972926860,9.87946285,176.58,176.55,0.06]
[1753972927160,16.26253591,176.59,176.55,0.06]
[1753972927582,9.87946285,176.6,176.56,10.54946285]
[1753972927783,147.3,176.61,176.58,9.87946285]
[1753972928183,157.89946285,176.61,176.57,9.87946285]
[1753972928375,0.03,176.58,176.57,10.54946285]
[1753972929180,0.03,176.58,176.56,9.87946285]
[1753972929887,0.03,176.58,176.55,5.72409921]
[1753972930190,0.03,176.58,176.56,9.87946285]
[1753972930988,0.03,176.58,176.55,57.13356206]
[1753972931485,0.03,176.58,176.55,57.13349999]
[1753972932395,0.03,176.58,176.56,0.67]
[1753972933398,0.03,176.58,176.57,0.67]
[1753972933784,0.03,176.58,176.55,57.13346969]
[1753972934183,0.03,176.58,176.55,56.46346969]
[1753972934497,0.03,176.58,176.56,0.67]
[1753972934688,0.03,176.58,176.55,57.13346969]
[1753972934892,0.03,176.58,176.56,0.67]
[1753972935086,0.03,176.58,176.56,6.73909379]
[1753972935276,0.03,176.58,176.56,0.67]
[1753972935474,0.03,176.58,176.57,6.73909379]
[1753972935970,0.03,176.58,176.57,8.36699379]
[1753972936868,0.03,176.58,176.57,14.03047003]
[1753972939999,0.03,176.58,176.55,0.06]
[1753972940508,0.03,176.58,176.55,12.46316709]
[1753972940679,0.03,176.58,176.55,6.3940733]
[1753972941097,6.81909379,176.58,176.55,5.72409965]
[1753972941300,0.75,176.58,176.55,5.72409965]
[1753972941503,0.75,176.58,176.55,0.06]
[1753972941806,0.72,176.57,176.55,0.06]
[1753972942102,6.09909379,176.58,176.55,0.06]
[1753972942304,6.81909379,176.58,176.55,0.06]
[1753972942507,6.78909379,176.57,176.55,0.06]
[1753972942879,0.72,176.56,176.55,0.06]
[1753972943700,10.61341385,176.56,176.55,0.06]
[1753972944107,16.27721085,176.56,176.55,0.06]
[1753972945317,10.61341385,176.56,176.55,0.06]
[1753972945710,0.72,176.56,176.55,0.06]
[1753972946013,15.58662234,176.58,176.55,0.06]
[1753972946206,9.92341385,176.58,176.55,0.06]
[1753972946516,9.89341385,176.56,176.55,0.06]
[1753972946895,10.61341385,176.56,176.55,0.06]
[1753972947426,16.27721085,176.56,176.55,0.06]
[1753972948095,67.0106247,176.56,176.53,0.06]
[1753972948305,52.67809782,176.54,176.49,0.2]
[1753972948498,9.89341385,176.5,176.49,0.2]
[1753972948914,10.61341385,176.5,176.49,0.2]
[1753972949209,33.06382019,176.5,176.49,0.2]
[1753972949394,33.06382019,176.5,176.49,1e-08]
[1753972949599,33.06382019,176.5,176.41,0.06]
[1753972949600,10.0,176.46,176.41,0.06]
[1753972949825,26.67809782,176.42,176.41,0.06]
[1753972950316,27.39809782,176.42,176.41,0.06]
[1753972950510,68.23809782,176.42,176.41,0.06]
[1753972951091,73.90638939,176.42,176.41,0.06]
[1753972951294,42.78468397,176.39,176.38,0.2]
[1753972951495,16.78468397,176.38,176.37,0.2]
[1753972951793,27.39809782,176.38,176.37,0.2]
[1753972952405,17.50468397,176.38,176.37,0.2]
[1753972952592,68.23809782,176.38,176.37,0.2]
[1753972953219,73.90767486,176.38,176.37,0.2]
[1753972953425,52.67809782,176.36,176.35,0.06]
[1753972953915,53.39809782,176.36,176.35,0.06]
[1753972954293,26.0,176.32,176.29,0.06]
[1753972954519,9.89341385,176.3,176.29,0.06]
[1753972955023,9.89341385,176.31,176.29,0.72]
[1753972955398,9.89341385,176.32,176.29,0.06]
[1753972955602,9.89341385,176.32,176.3,0.66]
[1753972955818,9.89341385,176.31,176.29,0.06]
[1753972956024,40.86,176.33,176.29,6.39236366]
[1753972956320,9.89341385,176.32,176.3,0.66]
[1753972956525,35.89341385,176.35,176.31,0.66]
[1753972956828,9.89341385,176.34,176.31,0.66]
[1753972957122,40.86,176.35,176.32,0.66]
[1753972957306,9.89341385,176.35,176.32,0.66]
[1753972957502,9.89341385,176.35,176.32,6.33142289]
[1753972957819,9.89341385,176.36,176.32,6.33142289]
[1753972958007,9.89341385,176.35,176.32,0.66]
[1753972958211,9.89341385,176.33,176.29,0.72]
[1753972958517,9.89341385,176.31,176.29,0.06]
[1753972958710,9.89341385,176.32,176.29,0.06]
[1753972959115,0.67,176.34,176.29,0.72]
[1753972959425,9.89341385,176.33,176.29,0.72]
[1753972959605,9.89341385,176.33,176.29,6.392394]
[1753972959925,0.67,176.34,176.29,6.392394]
[1753972959926,10.56341385,176.32,176.29,0.06]
[1753972960118,9.89341385,176.3,176.29,0.06]
[1753972960924,26.67,176.33,176.29,0.72]
[1753972960925,66.86,176.33,176.29,0.72]
[1753972961096,9.89341385,176.32,176.29,0.72]
[1753972961301,9.89341385,176.3,176.29,0.06]
[1753972961802,10.56341385,176.3,176.29,0.06]
[1753972963428,73.88024756,176.3,176.29,0.06]
[1753972964203,63.98683371,176.3,176.29,0.06]
[1753972964505,50.75341385,176.3,176.29,0.06]
[1753972965004,40.88,176.3,176.29,0.06]
[1753972965340,16.23556359,176.3,176.29,0.06]
[1753972965641,59.02024756,176.3,176.29,0.06]
[1753972965817,9.89341385,176.29,176.28,0.2]
[1753972966005,51.44341385,176.29,176.28,0.2]
[1753972966804,215.52809782,176.29,176.28,0.2]
[1753972967007,42.78468397,176.28,176.27,0.2]
[1753972967226,53.34809782,176.28,176.27,0.2]
[1753972967525,59.0208911,176.28,176.27,0.2]
[1753972968429,33.0208911,176.28,176.26,0.2]
[1753972968610,215.52809782,176.27,176.26,0.2]
[1753972969433,221.20121292,176.27,176.26,0.2]
[1753972971431,211.30779907,176.27,176.26,0.2]
[1753972971739,221.20121292,176.27,176.26,0.2]
[1753972972632,179.65121292,176.27,176.26,0.2]
[1753972972808,246.53121292,176.27,176.26,0.2]
[1753972973220,188.86652895,176.27,176.26,0.2]
[1753972973418,3.66264562,176.27,176.26,0.86]
[1753972973912,40.88,176.32,176.26,23.16945081]
[1753972974131,3.66363059,176.31,176.27,0.66]
[1753972974322,40.88,176.33,176.28,9.89341385]
[1753972974323,3.66363059,176.3,176.28,9.89341385]
[1753972974526,3.66363059,176.32,176.27,0.56731151]
[1753972974727,3.66363059,176.31,176.27,0.56731151]
[1753972974931,40.88,176.35,176.3,9.89341385]
[1753972975124,3.6651552,176.34,176.31,10.55341385]
[1753972975321,3.6651552,176.33,176.32,0.66]
[1753972975524,9.33647688,176.33,176.29,0.66]
[1753972975719,3.6651552,176.32,176.28,15.56619623]
[1753972975914,3.6651552,176.31,176.29,10.55341385]
[1753972976122,3.6651552,176.3,176.29,9.89341385]
[1753972976435,3.6651552,176.3,176.28,9.89341385]
[1753972976736,9.89341385,176.32,176.29,0.66]
[1753972976924,3.66719643,176.31,176.29,10.55341385]
[1753972977243,3.66719643,176.3,176.29,9.89341385]
[1753972977444,3.66719643,176.3,176.26,6.9426]
[1753972977740,3.66719643,176.29,176.27,0.66]
[1753972977941,50.77341385,176.33,176.28,9.89341385]
[1753972978117,3.66846097,176.32,176.28,9.89341385]
[1753972978318,3.66846097,176.31,176.29,10.55341385]
[1753972978535,3.66846097,176.3,176.29,9.89341385]
[1753972979116,3.66846097,176.3,176.29,10.55341385]
[1753972979452,4.68729092,176.35,176.29,10.55341385]
[1753972979658,3.67279654,176.34,176.32,9.89341385]
[1753972979955,3.67279654,176.33,176.29,15.56587742]
[1753972980116,3.67279654,176.32,176.27,5.6731151]
[1753972980442,3.67279654,176.31,176.28,0.66]
[1753972980650,3.67279654,176.3,176.29,0.66]
[1753972981137,3.6713131,176.3,176.29,0.66]
[1753972981353,3.6713131,176.3,176.29,10.55341385]
[1753972981545,3.6713131,176.3,176.29,16.22588534]
[1753972982018,4.58914138,176.35,176.29,16.22588534]
[1753972982224,3.67343188,176.34,176.32,9.89341385]
[1753972982525,3.67343188,176.33,176.3,0.56721497]
[1753972982726,4.58914138,176.36,176.33,1.5385]
[1753972982958,3.67687998,176.35,176.34,0.66]
[1753972983243,3.67687998,176.35,176.34,9.89341385]
[1753972983817,3.67687998,176.35,176.34,16.22427695]
[1753972984546,3.67687998,176.35,176.34,12.9446631]
[1753972984744,3.67687998,176.35,176.34,23.40516326]
[1753972984951,0.03,176.39,176.34,23.40516326]
[1753972985247,3.68389287,176.38,176.37,9.89341385]
[1753972985431,3.68389287,176.38,176.37,10.59341385]
[1753972985636,3.68389287,176.38,176.37,16.26331235]
[1753972985942,3.68389287,176.38,176.36,9.89341385]
[1753972986138,3.68389287,176.37,176.36,5.67010089]
[1753972986336,3.68389287,176.37,176.36,6.37010089]
[1753972987339,3.68389287,176.37,176.36,16.26351474]
[1753972987745,3.68389287,176.37,176.34,22.17783994]
[1753972987918,3.68389287,176.36,176.34,12.98462066]
[1753972988122,3.68389287,176.35,176.34,22.87803451]
[1753972988342,3.68389287,176.35,176.34,17.20721385]
[1753972988542,3.68389287,176.35,176.34,7.3138]
[1753972988731,3.68389287,176.35,176.34,6.6138]
[1753972989128,3.68389287,176.35,176.33,1.5385]
[1753972989333,3.68389287,176.34,176.33,1.5385]
[1753972989550,13.57730672,176.34,176.33,1.5385]
[1753972989852,18.8864481,176.34,176.3,6.6343]
[1753972990150,13.57730672,176.33,176.3,13.00640239]
[1753972990355,4.58914138,176.34,176.3,12.30640239]
[1753972990356,3.68389287,176.32,176.3,12.30640239]
[1753972990531,4.58914138,176.33,176.31,0.7]
[1753972990728,13.60061095,176.32,176.3,6.6343]
[1753972990939,3.7071971,176.31,176.29,1.5771]
[1753972991132,3.7071971,176.3,176.29,1.5771]
[1753972991624,13.60061095,176.3,176.26,22.72820538]
[1753972991829,13.60061095,176.29,176.26,12.83475177]
[1753972992141,3.7071971,176.28,176.27,0.7]
[1753972993348,8.29633848,176.28,176.27,10.59341385]
[1753972993544,8.29633848,176.28,176.26,12.83475177]
[1753972993729,8.29633848,176.27,176.26,0.2]
[1753972993930,3.7071971,176.27,176.25,1.646]
[1753972994145,8.36072782,176.26,176.25,1.646]
[1753972994346,3.7071971,176.26,176.25,1.646]
[1753972994650,3.7071971,176.26,176.25,7.31975886]
[1753972994857,3.7071971,176.26,176.25,8.01975886]
[1753972995149,3.7071971,176.26,176.25,17.91317271]
[1753972996173,20.94227668,176.34,176.25,17.91317271]
[1753972996326,7.87041153,176.33,176.3,9.89341385]
[1753972996646,3.72833741,176.32,176.31,0.7]
[1753972997330,10.61341385,176.37,176.31,0.7]
[1753972997530,7.87180397,176.36,176.32,5.67150635]
[1753972997730,3.72880799,176.35,176.32,16.2649202]
[1753972997958,3.72880799,176.34,176.32,16.2649202]
[1753972998173,3.72880799,176.33,176.32,16.2649202]
[1753972998340,16.28338331,176.37,176.32,9.89341385]
[1753972998667,8.59177549,176.36,176.32,9.89341385]
[1753972998905,3.72875503,176.35,176.32,9.89341385]
[1753972999037,16.78468397,176.32,176.25,1.646]
[1753972999361,9.89341385,176.28,176.25,1.646]
[1753972999533,31.67147988,176.33,176.27,0.76]
[1753972999733,9.89341385,176.3,176.27,0.76]
[1753973000036,0.72,176.32,176.27,15.62643639]
[1753973000249,9.89341385,176.36,176.28,0.7]
[1753973000466,9.89341385,176.34,176.3,9.89341385]
[1753973000668,9.89341385,176.31,176.27,0.06]
[1753973000846,9.89341385,176.32,176.27,9.95341385]
[1753973001048,9.89341385,176.3,176.27,0.06]
[1753973001357,9.89341385,176.29,176.27,0.06]
[1753973001565,10.61341385,176.28,176.27,0.06]
[1753973001967,9.89341385,176.3,176.27,0.06]
[1753973002147,15.56558477,176.3,176.27,0.06]
[1753973002464,10.61341385,176.29,176.27,0.06]
[1753973003063,10.61341385,176.28,176.27,0.06]
[1753973004670,16.28620713,176.28,176.27,0.06]
[1753973005076,9.89341385,176.29,176.27,0.06]
[1753973005265,15.56595921,176.29,176.27,0.06]
[1753973005466,16.28595921,176.29,176.27,0.06]
[1753973005664,0.72,176.32,176.27,0.06]
[1753973005968,9.89341385,176.3,176.27,0.06]
[1753973006169,10.61341385,176.3,176.27,0.06]
[1753973006476,9.89341385,176.29,176.27,0.06]
[1753973006775,10.61341385,176.29,176.27,0.06]
[1753973006977,10.61341385,176.28,176.27,0.06]
[1753973008079,5.67277299,176.29,176.27,0.06]
[1753973008254,9.89341385,176.29,176.27,0.06]
[1753973008886,188.14,176.31,176.27,0.06]
[1753973009076,198.03341385,176.31,176.27,0.06]
[1753973009273,198.75341385,176.31,176.27,0.06]
[1753973009477,9.89341385,176.3,176.27,0.06]
[1753973009666,194.53189092,176.31,176.27,0.06]
[1753973009873,10.61341385,176.29,176.27,0.06]
[1753973010274,9.89341385,176.29,176.27,0.06]
[1753973010464,0.72,176.28,176.27,0.06]
[1753973010668,10.61341385,176.28,176.27,0.06]
[1753973010865,153.69189092,176.31,176.27,0.06]
[1753973011070,9.89341385,176.3,176.27,0.06]
[1753973011563,198.75341385,176.31,176.27,0.06]
[1753973011760,203.70532006,176.31,176.27,0.76]
[1753973011983,188.14,176.31,176.27,0.76]
[1753973012185,203.70540236,176.31,176.27,0.06]
[1753973012391,9.89341385,176.28,176.27,0.06]
[1753973012562,0.72,176.3,176.27,0.06]
[1753973012768,9.89341385,176.28,176.27,0.06]
[1753973013176,10.61341385,176.28,176.27,0.06]
[1753973013686,51.45341385,176.28,176.27,0.06]
[1753973013857,57.12620713,176.28,176.27,0.06]
[1753973014260,50.73341385,176.28,176.27,0.06]
[1753973014562,40.84,176.28,176.27,0.06]
[1753973015763,203.7055786,176.3,176.27,0.06]
[1753973015961,9.89341385,176.29,176.27,0.06]
[1753973017185,35.89341385,176.31,176.27,0.72]
[1753973017488,0.03,176.32,176.29,9.89341385]
[1753973017791,0.03,176.32,176.29,10.55341385]
[1753973017991,0.03,176.32,176.3,9.89341385]
[1753973018186,0.03,176.32,176.3,10.55341385]
[1753973018572,0.03,176.32,176.31,9.89341385]
[1753973018922,0.03,176.32,176.31,10.55341385]
[1753973019885,0.03,176.32,176.31,16.22524188]
[1753973021367,0.03,176.39,176.35,1.5804]
[1753973021693,0.03,176.39,176.38,9.89341385]
[1753973022193,0.03,176.39,176.37,9.89341385]
[1753973022569,0.03,176.39,176.36,9.89341385]
[1753973022985,0.03,176.39,176.37,9.89341385]
[1753973024191,0.03,176.39,176.38,9.89341385]
[1753973024785,0.03,176.39,176.38,10.55341385]
[1753973025303,0.03,176.39,176.38,17.07411385]
[1753973025793,0.03,176.39,176.38,22.74369089]
[1753973026295,0.03,176.39,176.38,48.0207]
[1753973026591,0.03,176.39,176.38,63.58369089]
[1753973029096,0.03,176.39,176.38,22.74369089]
[1753973031482,0.03,176.39,176.38,12.85027704]
[1753973031687,0.03,176.39,176.38,22.74369089]
[1753973035801,0.03,176.39,176.38,39.52837486]
[1753973035999,0.03,176.41,176.38,39.52837486]
[1753973036181,0.03,176.41,176.4,37.49591385]
[1753973036384,0.03,176.41,176.4,78.31591385]
[1753973036691,0.03,176.41,176.4,95.76059782]
[1753973037805,0.77,176.5,176.4,95.76059782]
[1753973038018,0.77,176.5,176.47,9.89341385]
[1753973038710,0.67,176.49,176.47,9.89341385]
[1753973039409,0.1,176.5,176.47,5.66666129]
[1753973039583,0.1,176.5,176.49,9.89341385]
[1753973039789,0.1,176.5,176.48,9.89341385]
[1753973040098,0.67,176.49,176.47,9.89341385]
[1753973040297,0.1,176.5,176.47,9.89341385]
[1753973040605,9.89341385,176.48,176.4,1.6025]
[1753973040794,9.89341385,176.45,176.41,50.69341385]
[1753973040990,0.67,176.44,176.41,50.69341385]
[1753973041318,0.67,176.44,176.42,9.89341385]
[1753973041482,0.67,176.47,176.43,9.89341385]
[1753973041680,0.77,176.5,176.46,9.89341385]
[1753973041904,0.77,176.5,176.47,9.89341385]
[1753973042084,0.1,176.5,176.49,9.89341385]
[1753973042484,0.1,176.5,176.49,10.55341385]
[1753973042909,0.1,176.5,176.49,36.55341385]
[1753973043113,1e-08,176.5,176.49,53.33809782]
[1753973043687,0.1,176.53,176.52,26.0]
[1753973043941,0.1,176.53,176.52,94.04460586]
[1753973044129,0.1,176.57,176.55,26.0]
[1753973044428,0.1,176.57,176.56,47.0301767]
[1753973044636,0.1,176.57,176.53,15.67271097]
[1753973044637,0.1,176.57,176.53,40.8]
[1753973044908,9.89341385,176.56,176.53,40.8]
[1753973045084,10.58341385,176.56,176.53,40.8]
[1753973045612,10.58341385,176.55,176.53,40.8]
[1753973045796,9.89341385,176.55,176.53,40.8]
[1753973046124,0.69,176.55,176.53,40.8]
[1753973047725,15.55726988,176.56,176.5,1.5115]
[1753973047922,26.0,176.53,176.45,7.17695742]
[1753973048117,9.89341385,176.5,176.46,41.22]
[1753973048312,0.69,176.49,176.46,41.22]
[1753973048520,9.89341385,176.51,176.46,56.7803866]
[1753973048836,9.89341385,176.51,176.46,51.11341385]
[1753973048837,10.58341385,176.51,176.46,51.11341385]
[1753973049042,10.58341385,176.5,176.46,41.22]
[1753973049333,0.69,176.53,176.47,0.72]
[1753973049509,15.55787821,176.54,176.49,9.89341385]
[1753973049700,15.55787821,176.54,176.5,41.2]
[1753973049902,6.45353434,176.57,176.52,9.89341385]
[1753973050138,6.45353434,176.57,176.53,41.2]
[1753973050310,9.89341385,176.56,176.53,41.2]
[1753973050505,10.58341385,176.55,176.53,41.2]
[1753973050908,0.69,176.54,176.53,41.2]
[1753973051223,10.58341385,176.54,176.53,41.2]
[1753973051441,15.55724606,176.56,176.53,41.2]
[1753973051601,16.24724606,176.56,176.53,41.2]
[1753973052538,9.89341385,176.54,176.51,41.16]
[1753973052708,9.89341385,176.52,176.51,41.16]
[1753973052910,10.58341385,176.53,176.51,41.16]
[1753973053111,0.69,176.53,176.51,41.16]
[1753973053320,15.55724606,176.56,176.51,51.05341385]
[1753973053639,9.99341385,176.57,176.52,0.72]
[1753973053844,0.1,176.57,176.54,9.89341385]
[1753973054009,0.1,176.57,176.56,9.89341385]
[1753973054332,0.1,176.57,176.55,41.16]
[1753973054927,0.69,176.56,176.55,41.16]
[1753973055136,10.58341385,176.56,176.51,9.89341385]
[1753973055347,9.89341385,176.54,176.52,41.16]
[1753973055523,10.58341385,176.54,176.52,41.16]
[1753973055724,9.89341385,176.53,176.52,41.16]
[1753973056024,5.76352684,176.57,176.52,41.16]
[1753973056025,9.89341385,176.54,176.52,41.16]
[1753973056327,0.69,176.53,176.52,41.16]
[1753973056827,0.69,176.53,176.52,41.14]
[1753973057139,0.1,176.57,176.52,51.03341385]
[1753973057435,0.1,176.57,176.53,0.72]
[1753973057623,0.1,176.57,176.55,9.89341385]
[1753973057941,0.1,176.57,176.56,51.01341385]
[1753973058435,0.1,176.57,176.56,41.12]
[1753973058639,0.1,176.57,176.56,51.01341385]
[1753973059932,0.1,176.57,176.56,41.12]
[1753973061421,5.76347624,176.57,176.56,41.12]
[1753973061831,0.1,176.57,176.56,41.12]
[1753973062428,0.1,176.57,176.56,51.73341385]
[1753973063233,0.1,176.57,176.56,51.01341385]
[1753973063534,0.1,176.57,176.56,41.12]
[1753973063721,0.1,176.57,176.56,41.08]
[1753973064131,10.68341385,176.57,176.56,41.08]
[1753973064336,16.34689009,176.57,176.56,41.08]
[1753973064717,16.34689009,176.57,176.54,41.06]
[1753973065033,9.89341385,176.55,176.54,41.06]
[1753973065221,10.58341385,176.56,176.54,41.06]
[1753973066335,0.1,176.57,176.54,41.06]
[1753973066536,0.1,176.57,176.55,10.61341385]
[1753973067109,0.1,176.57,176.55,9.89341385]
[1753973067338,0.1,176.57,176.56,41.78]
[1753973067640,0.1,176.57,176.56,51.67341385]
[1753973068233,10.68341385,176.57,176.51,1.28654013]
[1753973068540,9.89341385,176.54,176.52,41.06]
[1753973068841,9.89341385,176.53,176.52,41.06]
[1753973069141,9.89341385,176.54,176.52,41.06]
[1753973069316,15.55788921,176.54,176.52,41.06]
[1753973069518,9.89341385,176.54,176.52,41.06]
[1753973069733,5.66422731,176.55,176.52,41.06]
[1753973070234,5.66386197,176.56,176.53,0.72]
[1753973070439,15.55727582,176.56,176.54,41.04]
[1753973070648,15.55727582,176.56,176.51,9.89341385]
[1753973070838,15.55727582,176.56,176.52,41.04]
[1753973071043,9.89341385,176.54,176.53,41.04]
[1753973071649,0.69,176.55,176.53,41.04]
[1753973071849,10.58341385,176.54,176.53,41.04]
[1753973072017,9.89341385,176.54,176.5,306.98215009]
[1753973072221,0.69,176.53,176.5,348.00215009]
[1753973072556,9.89341385,176.52,176.5,348.00215009]
[1753973073119,15.55881524,176.51,176.5,348.00215009]
[1753973073434,0.69,176.52,176.5,348.00215009]
[1753973073435,16.2486069,176.52,176.5,348.00215009]
[1753973073740,9.89341385,176.51,176.5,306.98215009]
[1753973073975,10.58341385,176.51,176.5,306.98215009]
[1753973074244,9.89341385,176.51,176.5,306.98215009]
[1753973074427,5.66485163,176.53,176.5,306.98215009]
[1753973074749,15.55826548,176.53,176.51,40.98]
[1753973074935,5.66485163,176.53,176.51,40.98]
[1753973075121,9.89341385,176.52,176.51,40.98]
[1753973076839,15.55826548,176.53,176.51,40.98]
[1753973077436,26.69,176.56,176.51,41.65]
[1753973077639,9.89341385,176.55,176.52,0.67]
[1753973077951,9.89341385,176.54,176.51,40.98]
[1753973078381,10.58341385,176.54,176.51,40.98]
[1753973079032,10.58341385,176.53,176.51,40.98]
[1753973079227,16.24849429,176.52,176.51,40.98]
[1753973079542,16.24849429,176.52,176.5,347.90215009]
[1753973079733,9.89341385,176.51,176.5,347.90215009]
[1753973080136,15.55849429,176.52,176.5,347.90215009]
[1753973081056,5.66485053,176.53,176.5,357.79556394]
[1753973081352,5.66485053,176.53,176.51,0.67]
[1753973081651,10.58341385,176.52,176.51,40.9]
[1753973082153,9.89341385,176.52,176.51,40.9]
[1753973082532,5.66485053,176.53,176.51,40.9]
[1753973082735,9.89341385,176.52,176.51,40.9]
[1753973083555,5.66486032,176.53,176.51,40.9]
[1753973083757,9.89341385,176.54,176.51,41.57]
[1753973084262,9.89341385,176.53,176.51,40.9]
[1753973084640,9.89341385,176.53,176.51,41.57]
[1753973085254,9.89341385,176.53,176.51,40.9]
[1753973085632,9.89341385,176.53,176.51,41.57]
[1753973086227,15.55810112,176.54,176.51,41.57]
[1753973086452,15.55810112,176.54,176.51,40.9]
[1753973087255,15.55810112,176.54,176.51,41.57]
[1753973087659,9.89341385,176.54,176.51,40.9]
[1753973088161,9.89341385,176.54,176.51,40.96]
[1753973088342,9.89341385,176.53,176.51,40.96]
[1753973088552,0.69,176.53,176.51,40.96]
[1753973088862,0.69,176.53,176.51,0.06]
[1753973088863,9.89341385,176.52,176.51,0.06]
[1753973089231,10.58341385,176.52,176.51,0.06]
[1753973089652,5.66508044,176.52,176.51,0.06]
[1753973090142,15.55849429,176.52,176.51,0.06]
[1753973090461,16.24849429,176.52,176.51,0.06]
[1753973090964,15.55849429,176.52,176.51,0.06]
[1753973091470,16.24849429,176.52,176.51,0.06]
[1753973093058,73.85317826,176.52,176.51,0.06]
[1753973093454,157.19341385,176.51,176.5,306.98215009]
[1753973093653,162.85881524,176.51,176.5,306.98215009]
[1753973093956,37.20372075,176.51,176.5,247.55578677]
[1753973094165,41.3718605,176.51,176.5,182.51654589]
[1753973094672,37.20372075,176.51,176.5,182.51654589]
[1753973094983,37.20372075,176.51,176.5,153.57537309]
[1753973095268,37.20372075,176.51,176.5,124.42463287]
[1753973095657,78.02372075,176.51,176.5,124.42463287]
[1753973096163,37.20372075,176.51,176.5,124.42463287]
[1753973096359,78.02372075,176.51,176.5,124.42463287]
[1753973097063,22.45008536,176.51,176.5,124.42463287]
[1753973097265,99.16349921,176.51,176.5,124.42463287]
[1753973097577,73.85349921,176.51,176.5,124.42463287]
[1753973098087,73.85349921,176.51,176.5,92.27749149]
[1753973098251,73.85349921,176.51,176.5,60.30107565]
[1753973098448,16.78468397,176.46,176.43,0.06]
[1753973098649,9.89341385,176.44,176.43,0.06]
[1753973098877,9.89341385,176.44,176.43,0.73]
[1753973099049,9.89341385,176.44,176.43,0.06]
[1753973099870,15.5610629,176.44,176.43,0.06]
[1753973100067,15.5610629,176.44,176.43,0.73]
[1753973100273,15.5610629,176.44,176.43,0.06]
[1753973100658,33.03574687,176.44,176.43,0.06]
[1753973101179,5.66764905,176.44,176.43,0.73]
[1753973101394,76.71341385,176.44,176.43,0.73]
[1753973101553,76.71341385,176.44,176.43,0.06]
[1753973101752,82.3810629,176.44,176.43,0.06]
[1753973102970,9.89341385,176.46,176.43,0.73]
[1753973103179,9.89341385,176.44,176.43,0.06]
[1753973103480,41.51,176.47,176.43,0.06]
[1753973103667,9.89341385,176.44,176.43,0.73]
[1753973104474,15.5610629,176.44,176.43,0.06]
[1753973104682,9.89341385,176.44,176.43,0.06]